bitfinex-derivatives/quotes_ETHF0:USTF0_20251118
["timestamp","ask_amount","ask_price","bid_price","bid_amount"]
[1763427855767,0.00494829,3030.8,3030.4,3.2078]
[1763427856378,0.00494829,3030.8,3030.3,0.00494829]
[1763427856673,0.416,3030.3,3029.1,3.2078]
[1763427856973,3.2078,3030.1,3029.1,3.2078]
[1763427857176,0.416,3030.3,3029.6,3.2078]
[1763427857366,3.2078,3030.1,3029.1,3.2078]
[1763427857562,1.79191655,3030.0,3029.3,0.00494829]
[1763427857775,1.17525852,3029.9,3029.3,0.00494829]
[1763427858472,1.17525852,3029.8,3029.3,0.00494829]
[1763427858668,1.17525852,3029.9,3029.5,3.2078]
[1763427858976,4.38305852,3030.1,3029.5,3.2078]
[1763427859172,1.17525852,3030.0,3029.5,3.2078]
[1763427861173,1.17525852,3030.0,3029.3,0.00494829]
[1763427861174,3.626,3029.6,3029.3,0.00494829]
[1763427861374,1.17525852,3029.5,3029.3,0.00494829]
[1763427861569,1.17525852,3029.4,3029.3,0.00494829]
[1763427862471,1.76288778,3029.5,3029.3,0.00494829]
[1763427862666,1.76288778,3029.4,3029.3,0.00494829]
[1763427862865,1.76288778,3029.5,3029.3,0.00494829]
[1763427864473,1.76288778,3029.4,3029.3,0.00494829]
[1763427864671,1.76288778,3029.5,3029.3,0.00494829]
[1763427865068,8.191,3029.5,3028.7,3.2078]
[1763427865269,1.17935772,3029.1,3028.7,3.2078]
[1763427866481,1.17935772,3029.0,3028.7,3.2078]
[1763427866786,1.17935772,3029.1,3028.7,3.2078]
[1763427867167,1.17935772,3029.0,3028.7,3.2078]
[1763427868071,1.92550315,3029.0,3028.7,3.2078]
[1763427868271,0.74614543,3028.9,3028.7,3.2078]
[1763427868479,0.74614543,3028.8,3028.7,3.2078]
[1763427869180,0.74614543,3028.9,3028.7,3.2078]
[1763427869379,0.74614543,3028.8,3028.7,3.2078]
[1763427869777,1.17935772,3029.0,3028.7,3.2078]
[1763427870177,1.92550315,3029.0,3028.7,3.2078]
[1763427870479,1.17935772,3028.8,3028.7,3.2078]
[1763427870684,1.92550315,3028.8,3028.7,3.2078]
[1763427870886,1.17935772,3028.8,3028.7,3.2078]
[1763427871086,1.92550315,3028.8,3028.7,3.2078]
[1763427871575,1.88245772,3028.8,3028.7,3.2078]
[1763427871769,2.62860315,3028.8,3028.7,3.2078]
[1763427871971,1.92550315,3028.8,3028.7,3.8467]
[1763427872372,1.17935772,3028.9,3028.7,0.6389]
[1763427872777,1.58905772,3028.9,3028.2,3.2078]
[1763427872978,4.15547413,3028.6,3027.4,3.2078]
[1763427873184,1.1812116,3027.8,3027.0,3.2078]
[1763427873480,0.74614543,3027.7,3027.4,3.2078]
[1763427873671,1.1812116,3027.9,3027.4,3.2078]
[1763427873672,0.74614543,3027.6,3027.4,3.2078]
[1763427873875,0.74614543,3027.5,3027.0,3.2078]
[1763427874074,0.74614543,3027.4,3027.0,3.21048537]
[1763427874275,0.00327826,3027.5,3027.0,3.21048537]
[1763427874476,0.00327826,3027.5,3027.4,3.2078]
[1763427875368,0.00494829,3027.9,3027.4,3.2078]
[1763427875567,1.1812116,3028.2,3027.8,3.2078]
[1763427875768,10.55355758,3028.7,3027.8,3.2078]
[1763427875769,1.1812116,3028.6,3027.8,3.2078]
[1763427875984,9.3712116,3028.7,3028.2,3.2078]
[1763427876183,1.1812116,3028.6,3027.8,3.2078]
[1763427876481,1.18373083,3028.6,3027.8,3.2078]
[1763427876669,0.00494829,3028.5,3027.9,0.00494829]
[1763427876870,0.00494829,3028.5,3028.0,3.2078]
[1763427879283,0.4097,3028.2,3028.0,3.2078]
[1763427880281,1.1812116,3028.4,3028.0,3.2078]
[1763427880479,0.00494829,3028.5,3028.0,3.2078]
[1763427880785,0.00494829,3028.5,3028.4,0.129]
[1763427881172,0.00494829,3028.5,3028.4,3.3368]
[1763427882778,0.00494829,3028.5,3028.4,3.2078]
[1763427883385,0.70804829,3028.5,3028.4,3.2078]
[1763427883681,0.70804829,3028.5,3028.4,3.3368]
[1763427883682,0.00494829,3028.5,3028.4,3.3368]
[1763427885382,3.2078,3029.4,3029.3,0.1215]
[1763427885588,3.2078,3029.4,3028.8,3.2078]
[1763427886389,3.21631421,3029.4,3028.8,3.21065446]
[1763427887488,0.74535361,3029.3,3028.8,3.21065446]
[1763427887886,1.421e-05,3029.4,3028.8,6.51145446]
[1763427888190,3.2078,3030.3,3029.3,3.2078]
[1763427889091,0.00494829,3030.1,3029.5,0.00494829]
[1763427889786,3.21128098,3030.3,3029.7,3.2078]
[1763427889991,1.1812116,3031.1,3030.2,3.2078]
[1763427890200,3.6175,3031.2,3030.6,3.2078]
[1763427890884,3.62244829,3031.2,3030.6,3.2078]
[1763427891083,3.62621169,3031.2,3030.6,3.2078]
[1763427892288,3.62621169,3031.2,3029.5,0.27618699]
[1763427892289,0.00871169,3031.2,3031.1,3.2078]
[1763427892484,3.2078,3031.6,3031.1,3.21054588]
[1763427893389,0.4097,3031.7,3031.5,3.2078]
[1763427893391,0.00494829,3031.7,3031.5,3.2078]
[1763427893590,3.2078,3033.0,3031.6,1.9713971]
[1763427893782,3.2078,3033.4,3032.6,3.2078]
[1763427894490,3.21149938,3033.4,3032.6,3.2078]
[1763427894676,3.21149938,3033.4,3032.7,0.00494829]
[1763427894677,0.4097,3033.1,3032.7,0.00494829]
[1763427900888,0.00329886,3033.3,3032.7,0.00494829]
[1763427901195,0.4097,3034.5,3033.0,3.2078]
[1763427901391,3.2078,3035.1,3034.4,3.2078]
[1763427902099,3.2104369,3035.1,3034.4,3.21653171]
[1763427902300,0.414,3034.5,3034.4,3.21653171]
[1763427902595,3.2104369,3035.1,3034.4,3.21653171]
[1763427903799,0.0026369,3035.1,3034.9,3.2078]
[1763427904697,0.0026369,3035.1,3034.5,3.2078]
[1763427906094,0.0026369,3035.1,3034.9,3.2078]
[1763427907188,0.0026369,3035.1,3034.5,3.2078]
[1763427907587,3.2078,3034.9,3034.5,3.2078]
[1763427907786,0.414,3034.5,3034.4,0.00873171]
[1763427907989,0.414,3033.8,3033.6,3.2078]
[1763427909095,0.414,3033.8,3033.6,3.21117658]
[1763427910796,0.414,3033.8,3033.6,0.00337658]
[1763427911106,6.414,3033.8,3033.4,0.00494829]
[1763427911303,3.2078,3033.6,3033.4,4.829e-05]
[1763427912102,3.2078,3033.5,3033.4,0.003368]
[1763427912295,0.414,3033.1,3032.5,3.2078]
[1763427913396,3.6218,3033.1,3032.5,0.00837058]
[1763427913599,0.414,3031.7,3031.3,3.2078]
[1763427913793,0.414,3031.7,3031.1,0.048]
[1763427914200,3.2078,3031.6,3031.1,0.048]
[1763427914600,3.2078,3031.2,3031.1,0.05065726]
[1763427915004,5.1791971,3031.2,3030.1,3.2078]
[1763427915216,3.2078,3031.2,3030.1,3.2078]
[1763427915903,3.21190205,3031.6,3030.6,3.2078]
[1763427916114,2.36355758,3032.6,3030.1,0.00263254]
[1763427916115,0.653829,3032.8,3031.5,1.9713971]
[1763427916297,0.73248851,3033.0,3032.2,3.2078]
[1763427916503,0.414,3033.1,3032.7,3.2078]
[1763427916898,3.2078,3033.7,3032.7,3.2078]
[1763427917102,0.00494829,3033.5,3033.1,3.2078]
[1763427917608,0.00494829,3033.5,3033.0,3.2078]
[1763427918009,0.414,3033.1,3032.9,0.00494829]
[1763427919501,0.00494829,3033.5,3033.0,3.2078]
[1763427919704,0.00494829,3033.5,3032.9,0.00494829]
[1763427919705,0.00494829,3033.5,3033.4,3.2078]
[1763427920312,5.545,3034.7,3033.4,3.2078]
[1763427920505,3.6218,3035.2,3034.4,3.2078]
[1763427921113,3.2078,3034.8,3034.5,0.00494829]
[1763427921610,0.4968,3034.4,3034.0,3.2078]
[1763427923507,0.06231009,3035.1,3034.0,3.2078]
[1763427923709,0.06231009,3035.1,3034.6,3.2078]
[1763427924411,0.00494829,3035.1,3034.6,3.2078]
[1763427925215,0.4968,3034.5,3034.1,3.2078]
[1763427926111,0.4968,3034.5,3033.9,0.00494829]
[1763427927014,0.4814,3033.8,3033.7,3.2078]
[1763427928211,0.4814,3033.8,3033.4,0.00494829]
[1763427928919,9.6892,3033.8,3033.1,3.2078]
[1763427929220,3.6892,3033.8,3033.1,3.2078]
[1763427929609,3.2078,3033.4,3032.7,0.00316772]
[1763427929810,0.4814,3033.1,3032.7,0.00316772]
[1763427930011,0.4814,3033.1,3032.7,0.00811601]
[1763427930318,0.4814,3033.8,3033.0,3.2078]
[1763427930524,0.4814,3033.8,3033.4,3.2078]
[1763427930710,0.00494829,3033.9,3033.4,3.2078]
[1763427931112,0.4814,3033.8,3033.4,3.2078]
[1763427934709,0.4814,3033.8,3033.3,3.2078]
[1763427935714,0.00494829,3033.9,3033.7,3.2078]
[1763427935925,3.2078,3034.4,3033.7,6.5038]
[1763427936216,3.2078,3034.4,3033.7,3.2078]
[1763427936405,0.4814,3033.8,3033.7,3.2078]
[1763427936612,3.2078,3034.4,3033.7,3.2078]
[1763427936816,3.2078,3035.0,3034.2,3.2078]
[1763427937018,3.2078,3035.0,3034.3,0.00494829]
[1763427937523,0.4814,3034.5,3034.3,0.00494829]
[1763427938214,0.00494829,3034.7,3034.3,0.00494829]
[1763427938415,0.00387877,3035.2,3034.6,3.2078]
[1763427938716,3.2078,3036.3,3035.0,3.2078]
[1763427938922,0.4814,3036.6,3036.1,3.2078]
[1763427939524,0.4814,3036.6,3036.0,0.00494829]
[1763427939525,3.2078,3036.4,3036.0,0.00494829]
[1763427939819,3.2078,3036.3,3035.3,3.2078]
[1763427940023,0.4814,3036.0,3035.3,3.2078]
[1763427940220,3.2078,3035.8,3034.9,3.2078]
[1763427940919,0.00494829,3035.7,3035.3,3.2078]
[1763427941921,0.00494829,3035.7,3035.0,0.00494829]
[1763427941922,0.4814,3035.2,3035.0,0.00494829]
[1763427942624,0.00494829,3035.7,3035.0,0.00494829]
[1763427943019,0.4814,3035.2,3035.0,0.00494829]
[1763427943214,3.2078,3035.1,3035.0,0.00494829]
[1763427943521,0.4814,3034.5,3034.3,3.2078]
[1763427944120,3.2078,3035.1,3034.3,3.2078]
[1763427944319,0.4814,3035.2,3034.3,3.2078]
[1763427944525,0.4814,3034.5,3034.4,0.00494829]
[1763427944719,3.6892,3034.5,3033.0,3.2078]
[1763427944927,3.2078,3034.1,3033.0,3.2078]
[1763427945117,0.4814,3033.8,3033.5,3.2078]
[1763427945616,0.4814,3033.8,3031.9,1.75607325]
[1763427945617,0.4814,3033.1,3032.6,3.2078]
[1763427945817,0.4814,3033.1,3032.6,0.00428572]
[1763427946018,3.2078,3032.8,3032.6,0.00428572]
[1763427946224,0.4814,3032.0,3031.5,3.2078]
[1763427946530,3.6892,3032.0,3031.5,3.2078]
[1763427947227,3.6892,3032.0,3031.5,3.21037772]
[1763427947429,3.2078,3031.6,3031.5,0.00257772]
[1763427947619,3.2078,3031.6,3031.4,0.00329886]
[1763427947620,3.21057508,3031.6,3031.4,0.00329886]
[1763427948626,3.21057508,3031.6,3031.4,0.00585518]
[1763427949027,0.4814,3031.2,3030.9,3.2078]
[1763427949527,3.21057508,3031.6,3030.9,3.2078]
[1763427949730,0.4814,3031.2,3030.9,3.2078]
[1763427950125,0.4814,3031.2,3030.9,3.21200106]
[1763427950325,3.21057508,3031.6,3030.9,3.21200106]
[1763427951032,3.6892,3031.2,3030.9,1.06e-06]
[1763427951232,10.12152629,3031.2,3029.4,3.2078]
[1763427951426,0.4814,3030.4,3029.4,3.2078]
[1763427951623,0.4814,3030.4,3029.8,3.2078]
[1763427952231,0.4814,3030.4,3029.8,3.21078552]
[1763427952826,3.2078,3030.5,3029.8,3.21078552]
[1763427953225,0.00494829,3030.6,3030.3,3.2078]
[1763427953720,0.4814,3031.2,3030.3,9.2078]
[1763427953926,3.21057508,3031.6,3030.9,3.2078]
[1763427954343,0.00277508,3031.6,3031.3,3.2078]
[1763427955631,0.00277508,3031.6,3031.1,0.00494829]
[1763427957137,0.00277508,3031.6,3031.3,3.2078]
[1763427957334,0.4823,3031.2,3031.1,0.00494829]
[1763427958033,3.21057508,3031.6,3031.1,0.00494829]
[1763427960129,0.00277508,3031.6,3031.5,3.2078]
[1763427960328,0.4823,3032.4,3031.6,3.2984]
[1763427960541,0.4823,3032.4,3031.9,3.2078]
[1763427960743,3.2078,3032.6,3031.9,3.2078]
[1763427960946,3.2078,3033.1,3032.4,3.2078]
[1763427961133,3.2078,3033.1,3032.0,9.2976]
[1763427961134,0.4814,3033.6,3033.0,3.2078]
[1763427961334,0.48947583,3033.6,3033.0,3.21540973]
[1763427961844,3.69727583,3033.6,3033.0,0.00760973]
[1763427962041,3.2078,3033.2,3033.0,0.00760973]
[1763427962541,0.48947583,3033.6,3033.0,0.00760973]
[1763427962741,0.48947583,3033.6,3033.1,3.2078]
[1763427962938,0.48947583,3033.6,3033.0,0.00760973]
[1763427963241,3.2078,3033.4,3033.0,0.00760973]
[1763427965044,0.4823,3032.8,3032.7,3.20008636]
[1763427965338,0.4823,3032.8,3031.5,3.2078]
[1763427965339,0.4823,3032.0,3031.5,3.2078]
[1763427966038,0.4823,3032.0,3031.5,3.21148373]
[1763427967042,3.2078,3031.6,3031.5,0.00368373]
[1763427967236,3.2078,3031.6,3031.4,0.00494829]
[1763427967436,3.6901,3032.0,3031.4,0.00494829]
[1763427967742,3.2078,3031.6,3031.4,0.00494829]
[1763427968049,3.2078,3031.8,3031.4,0.00494829]
[1763427968343,3.2078,3031.8,3031.4,0.00731919]
[1763427968937,0.4823,3032.0,3031.4,0.00731919]
[1763427969241,3.2078,3031.8,3031.4,0.00731919]
[1763427970935,0.4823,3032.0,3031.5,3.2078]
[1763427971335,0.00494829,3032.1,3031.5,3.2078]
[1763427971336,0.00494829,3032.1,3031.9,3.2078]
[1763427972445,0.00494829,3032.1,3032.0,3.2078]
[1763427972941,0.4823,3032.8,3032.0,14.29594791]
[1763427973134,0.4823,3032.8,3032.4,3.2078]
[1763427973331,0.4823,3032.8,3032.0,3.2078]
[1763427973846,0.00494829,3032.7,3032.0,3.2078]
[1763427974748,0.00494829,3032.7,3032.4,3.2078]
[1763427975845,0.00494829,3032.7,3032.4,4.99834791]
[1763427976749,0.00494829,3032.7,3032.4,3.2078]
[1763427978242,0.00494829,3032.7,3032.4,4.99834791]
[1763427978551,3.2078,3033.1,3032.4,4.99834791]
[1763427978940,8.17,3033.8,3032.4,4.99834791]
[1763427978941,8.17,3033.8,3032.9,1.79054791]
[1763427979242,0.00312754,3033.6,3033.3,4.99834791]
[1763427979443,0.4823,3034.4,3033.3,4.99834791]
[1763427979444,0.00494829,3033.8,3033.3,4.99834791]
[1763427979643,3.6901,3034.4,3033.7,4.99834791]
[1763427980042,0.4823,3035.2,3034.3,3.2078]
[1763427980445,0.4823,3035.2,3034.7,3.2078]
[1763427980645,0.48652948,3035.2,3034.7,3.2078]
[1763427982457,0.00422948,3035.2,3034.7,3.2078]
[1763427982645,0.4823,3036.0,3035.1,3.2078]
[1763427982844,3.6901,3036.0,3035.1,3.2078]
[1763427983053,0.4823,3036.0,3035.1,3.2078]
[1763427983253,0.4823,3036.0,3035.5,3.2078]
[1763427983750,0.48485168,3036.0,3035.5,3.2078]
[1763427983960,3.2078,3035.9,3034.9,3.2078]
[1763427984153,3.2078,3035.9,3035.3,3.2078]
[1763427984854,0.00255168,3036.0,3035.7,3.2078]
[1763427985051,0.52093043,3036.8,3035.7,3.2078]
[1763427985052,4.38699298,3037.6,3035.9,2.31976469]
[1763427985252,1.76550282,3037.8,3035.8,6.0]
[1763427985253,3.2078,3038.5,3037.4,2.31976469]
[1763427985450,0.0346,3038.7,3037.4,2.31976469]
[1763427985959,0.0346,3038.7,3038.0,3.2078]
[1763427986160,0.04182984,3038.7,3038.0,3.21691765]
[1763427987458,3.2078,3039.4,3038.4,3.2078]
[1763427987650,3.2078,3039.8,3038.8,3.2078]
[1763427988253,0.4793,3039.2,3038.8,3.2078]
[1763427988452,0.4793,3039.2,3038.2,3.2078]
[1763427988453,3.2078,3038.9,3038.2,3.2078]
[1763427988761,0.4793,3038.4,3038.2,3.2078]
[1763427989863,0.48263387,3039.2,3038.2,3.2078]
[1763427990062,0.48263387,3039.2,3038.7,3.2078]
[1763427990549,0.48263387,3039.2,3038.2,3.2078]
[1763427991462,3.2078,3038.9,3038.2,3.2078]
[1763427991768,3.2078,3038.9,3038.0,0.00911765]
[1763427992158,0.00333387,3039.2,3038.8,3.2078]
[1763427992564,0.00333387,3039.2,3038.8,6.4982]
[1763427992759,3.2078,3040.3,3038.9,9.2904]
[1763427992963,3.2078,3040.7,3040.2,5.52756469]
[1763427993162,3.2078,3041.7,3040.2,5.52756469]
[1763427993361,3.2078,3041.3,3040.0,3.2078]
[1763427993662,3.21168596,3041.3,3040.4,3.2078]
[1763427993859,3.21168596,3041.3,3040.8,3.2078]
[1763427995365,3.2078,3042.8,3041.2,3.2078]
[1763427995672,3.2078,3044.3,3042.7,2.31976469]
[1763427995863,3.2078,3043.8,3042.8,3.2078]
[1763427996260,0.03703402,3043.7,3042.8,3.2103664]
[1763427996459,3.2078,3042.9,3042.8,0.0025664]
[1763427996766,3.2078,3042.9,3042.4,3.2078]
[1763427997260,3.2078,3042.9,3041.7,0.00493161]
[1763427997261,3.2078,3042.5,3041.7,0.00493161]
[1763427997459,3.2078,3042.9,3041.7,0.00493161]
[1763427997768,3.2078,3042.9,3042.0,3.2078]
[1763427997966,3.2078,3043.3,3042.8,2.31976469]
[1763427998162,1.76029154,3043.3,3042.8,5.60536469]
[1763427998466,0.03703402,3043.7,3043.2,3.2078]
[1763427998663,3.2078,3043.6,3042.8,3.2078]
[1763427999271,3.2078,3043.6,3042.8,5.52756469]
[1763427999475,3.2078,3043.6,3042.4,3.2078]
[1763427999772,3.2078,3043.6,3041.7,0.00768593]
[1763427999773,3.6871,3043.0,3042.0,3.2078]
[1763428000576,0.4793,3042.0,3041.5,3.2078]
[1763428000780,0.4793,3041.0,3040.9,2.62792975]
[1763428001368,0.4793,3041.0,3040.1,3.2078]
[1763428001578,3.2078,3040.8,3040.2,0.00493161]
[1763428002174,0.00490346,3040.9,3040.6,3.2078]
[1763428002479,0.00371986,3041.0,3040.6,3.2078]
[1763428002671,0.48301986,3041.0,3040.6,3.2078]
[1763428003283,9.2078,3040.9,3040.2,0.00493161]
[1763428003487,3.2078,3040.5,3040.1,0.0027649]
[1763428003669,0.4793,3040.0,3039.6,3.2078]
[1763428003982,3.6871,3040.0,3039.2,3.2078]
[1763428004572,0.00493161,3039.9,3039.3,0.00493161]
[1763428004768,0.00493161,3039.9,3039.3,0.00888718]
[1763428005684,3.2078,3039.8,3039.3,0.00888718]
[1763428006376,3.2078,3039.8,3039.3,3.21668718]
[1763428006880,0.00493161,3039.9,3039.3,3.21668718]
[1763428007275,3.2078,3039.8,3039.3,0.00888718]
[1763428007474,3.2078,3039.8,3039.3,3.21668718]
[1763428008076,0.00493161,3039.9,3039.3,3.21668718]
[1763428009184,3.2078,3039.6,3039.3,0.00888718]
[1763428009582,0.00493161,3039.9,3039.3,0.00888718]
[1763428009785,0.00493161,3039.9,3039.3,3.21668718]
[1763428011386,3.2078,3039.6,3038.5,3.2078]
[1763428011591,3.2078,3039.1,3038.5,3.2078]
[1763428012087,0.4793,3038.4,3038.1,3.2078]
[1763428012288,3.2078,3038.3,3037.2,3.2078]
[1763428012485,3.2078,3037.3,3037.2,0.00327607]
[1763428012988,0.4793,3037.5,3037.2,0.00327607]
[1763428013191,0.4793,3037.5,3037.3,3.2078]
[1763428013793,0.4793,3037.5,3037.2,0.00327607]
[1763428013987,3.2078,3037.3,3037.2,0.00327607]
[1763428014292,0.4793,3037.5,3037.2,0.00327607]
[1763428014489,0.4793,3037.5,3035.9,1.24847328]
[1763428014490,0.4793,3036.6,3036.4,3.2078]
[1763428015288,3.2078,3037.4,3036.4,3.2078]
[1763428015489,3.2078,3037.4,3036.6,0.00493989]
[1763428016798,0.00493161,3038.1,3037.2,3.2078]
[1763428016989,0.00493161,3038.1,3036.7,14.41251726]
[1763428016990,0.00493161,3038.1,3037.6,3.2078]
[1763428017293,0.00493161,3038.1,3038.0,3.2078]
[1763428017489,0.00426494,3038.3,3038.0,3.2078]
[1763428017693,0.4793,3039.3,3038.1,9.2912]
[1763428017988,0.4793,3040.2,3039.2,3.2078]
[1763428018298,0.4793,3040.2,3039.6,3.2078]
[1763428018590,3.2078,3040.1,3039.6,0.00865629]
[1763428020091,0.48704186,3040.2,3039.6,0.00865629]
[1763428020593,3.2078,3040.1,3039.6,0.00865629]
[1763428020893,0.48704186,3040.2,3039.6,0.00865629]
[1763428021389,3.2078,3039.7,3039.0,3.2078]
[1763428022297,3.2078,3040.1,3039.0,3.2078]
[1763428022495,3.2078,3039.1,3038.2,3.2078]
[1763428022696,3.2078,3039.0,3038.3,3.2078]
[1763428022895,0.5175,3038.4,3037.9,3.2078]
[1763428023497,0.5175,3038.4,3037.9,3.21025901]
[1763428024587,3.2078,3039.1,3037.9,3.21025901]
[1763428024792,0.5175,3038.4,3038.3,3.2078]
[1763428024993,3.2078,3039.1,3038.3,3.2078]
[1763428025197,0.5175,3039.3,3038.3,3.2078]
[1763428025398,0.5175,3038.4,3038.3,3.2078]
[1763428025693,0.00493989,3038.7,3038.3,3.2078]
[1763428025899,0.5175,3039.3,3038.3,3.2078]
[1763428026102,0.5175,3039.3,3038.6,3.2078]
[1763428026297,0.5175,3039.3,3039.1,3.2078]
[1763428026804,3.2078,3040.1,3039.1,3.2078]
[1763428026994,3.2078,3040.1,3039.6,3.2078]
[1763428027195,0.00493989,3039.9,3039.6,3.2078]
[1763428027398,0.00493989,3039.9,3039.5,0.00493989]
[1763428031194,0.00493989,3039.9,3037.7,3.588]
[1763428031195,0.5175,3039.3,3038.6,3.2078]
[1763428031504,0.5175,3039.3,3036.7,2.36909803]
[1763428031505,3.2078,3038.7,3038.2,3.2078]
[1763428031698,1.68343551,3039.3,3038.2,3.2078]
[1763428031900,0.5175,3038.4,3038.2,3.2078]
[1763428032701,0.5175,3039.3,3038.2,3.2078]
[1763428032906,0.5175,3039.3,3038.8,3.2078]
[1763428033800,3.2078,3038.9,3038.2,3.2078]
[1763428034200,0.5175,3039.3,3038.7,3.2078]
[1763428039005,3.21273989,3039.9,3039.2,3.2078]
[1763428039802,0.00493989,3039.9,3039.8,3.2078]
[1763428040108,0.00493989,3039.9,3039.5,0.00493989]
[1763428040806,0.00493989,3039.9,3039.8,3.2078]
[1763428040998,0.00493989,3039.9,3039.5,0.00493989]
[1763428041206,0.00493989,3039.9,3039.5,3.989e-05]
[1763428043709,0.00493989,3039.9,3039.8,3.2078]
[1763428044098,0.00493989,3039.9,3039.8,6.4974]
[1763428044311,1e-08,3039.9,3039.8,6.4974]
[1763428044505,1e-08,3039.9,3039.8,3.2078]
[1763428044713,0.00841,3040.9,3039.8,3.2078]
[1763428044906,0.00841,3040.9,3040.8,3.2078]
[1763428045103,1e-05,3040.9,3040.8,3.2078]
[1763428045810,0.00274899,3040.9,3040.8,3.21133478]
[1763428046013,4.899e-05,3040.9,3040.8,6.49933478]
[1763428046209,4.899e-05,3040.9,3040.8,3.21133478]
[1763428047215,0.5429,3040.0,3039.5,3.989e-05]
[1763428047412,0.5429,3040.0,3038.6,2.36909803]
[1763428047413,0.5429,3039.2,3038.7,1.16267078]
[1763428047720,3.2078,3039.0,3037.8,3.2078]
[1763428047906,1.16593551,3038.7,3037.4,3.2078]
[1763428048115,1.16593551,3038.3,3036.4,1.16267078]
[1763428048307,0.00413849,3038.3,3036.4,0.00414439]
[1763428048515,0.00493989,3037.7,3037.0,0.00493989]
[1763428050111,0.00493989,3037.7,3037.3,3.2078]
[1763428051316,3.2078,3038.2,3037.5,0.4518]
[1763428051508,3.2078,3038.2,3037.7,3.2078]
[1763428051718,0.00413849,3038.3,3037.7,6.499]
[1763428051915,0.00413849,3038.3,3038.1,3.2078]
[1763428052115,2.42964163,3038.6,3038.1,3.2078]
[1763428052422,1.16593551,3039.8,3037.5,0.4518]
[1763428052423,0.00493989,3038.7,3038.5,3.2078]
[1763428053123,3.2078,3039.1,3038.5,9.2078]
[1763428053420,3.2078,3039.7,3038.9,3.2078]
[1763428053922,0.5429,3040.0,3039.3,3.2078]
[1763428054121,0.54783989,3040.0,3039.3,3.2078]
[1763428054317,0.55198686,3040.0,3039.3,3.21187698]
[1763428054531,0.00908686,3040.0,3039.8,3.2078]
[1763428054720,3.2078,3040.6,3039.8,3.2078]
[1763428055024,3.2078,3041.4,3040.5,3.2078]
[1763428055738,0.00266474,3041.4,3041.0,3.2078]
[1763428056039,0.00266474,3041.4,3041.0,6.4958]
[1763428056232,0.00266474,3041.4,3041.0,3.2078]
[1763428058738,3.2078,3042.5,3041.0,9.2078]
[1763428058938,0.5429,3042.9,3041.9,3.2078]
[1763428059137,0.5429,3042.0,3041.9,3.2078]
[1763428059345,0.5429,3042.9,3041.9,3.2078]
[1763428059538,0.5429,3042.9,3042.3,3.2078]
[1763428059842,0.54606522,3042.9,3042.3,3.21533276]
[1763428060629,3.2078,3042.6,3042.3,0.00753276]
[1763428061240,0.5429,3042.0,3041.9,3.2078]
[1763428061542,0.5429,3042.0,3040.0,2.81703295]
[1763428061543,3.7507,3042.0,3041.3,3.2078]
[1763428062334,3.7556154,3042.0,3041.3,3.21684174]
[1763428062634,3.2078,3041.5,3041.3,0.00904174]
[1763428064541,0.5429,3041.1,3039.4,4.37047078]
[1763428064744,0.5429,3040.2,3039.8,3.2078]
[1763428064934,3.2078,3040.5,3039.2,3.2078]
[1763428065139,3.2078,3040.9,3040.1,3.2078]
[1763428065337,0.5429,3041.1,3038.6,2.945]
[1763428065338,0.5429,3041.1,3040.5,3.2078]
[1763428065646,0.00856127,3041.1,3041.0,3.2078]
[1763428066237,0.55146127,3041.1,3040.5,3.21638606]
[1763428068743,0.55146127,3041.1,3040.6,3.2078]
[1763428068939,0.00856127,3041.1,3040.6,3.2078]
[1763428069143,0.55146127,3041.1,3040.6,3.2078]
[1763428070945,0.00856127,3041.1,3041.0,3.2078]
[1763428071148,3.2078,3041.9,3041.0,3.2078]
[1763428071343,3.2078,3041.9,3041.4,3.2078]
[1763428071540,3.2078,3041.9,3041.0,3.2078]
[1763428072249,0.0049154,3041.8,3041.0,3.2078]
[1763428075153,0.0049154,3041.8,3040.5,0.00858606]
[1763428075154,0.5429,3040.8,3040.5,0.00858606]
[1763428075552,3.2078,3040.7,3040.5,0.00858606]
[1763428075845,3.2078,3040.7,3040.2,3.2078]
[1763428076456,0.5429,3040.0,3039.3,3.2078]
[1763428076946,0.00493169,3040.0,3039.8,3.2078]
[1763428077255,3.80043169,3040.0,3039.4,3.2078]
[1763428078756,0.59263169,3040.0,3039.4,3.2078]
[1763428079546,0.00493169,3040.0,3039.4,3.2078]
[1763428079751,3.2078,3040.5,3039.8,3.2078]
[1763428080352,0.5877,3040.0,3039.4,3.2078]
[1763428080852,3.2078,3040.2,3039.7,2.31082497]
[1763428081054,3.2078,3041.2,3039.8,3.2078]
[1763428081258,3.2078,3041.2,3040.6,3.2078]
[1763428081447,0.5429,3042.0,3040.6,3.2078]
[1763428081651,3.2078,3042.3,3041.7,2.31082497]
[1763428081852,3.2078,3042.3,3041.6,3.2078]
[1763428082052,3.21273169,3042.3,3041.7,0.00493169]
[1763428082351,3.2078,3041.9,3041.7,0.00493169]
[1763428082655,3.2078,3041.9,3041.7,0.00764785]
[1763428082849,3.21182034,3041.9,3041.7,0.00764785]
[1763428083355,0.00402034,3041.9,3041.7,0.00764785]
[1763428084560,0.00402034,3041.9,3041.7,3.29484785]
[1763428084755,2.034e-05,3041.9,3041.7,0.00764785]
[1763428084961,2.034e-05,3041.9,3041.7,3.29484785]
[1763428085756,3.2078,3042.8,3041.7,9.29484785]
[1763428085957,3.2078,3042.8,3042.3,3.2078]
[1763428086260,0.5877,3043.2,3042.3,3.2078]
[1763428086654,0.5905248,3043.2,3042.3,3.2078]
[1763428086858,0.0028248,3043.2,3042.8,3.2078]
[1763428087355,0.5877,3042.4,3041.8,4.37047078]
[1763428087557,3.2078,3042.0,3041.7,0.00764785]
[1763428088461,3.7955,3042.4,3041.7,0.00764785]
[1763428090058,3.7955,3042.4,3041.8,3.2078]
[1763428090059,3.2078,3042.4,3041.8,3.2078]
[1763428090451,3.2078,3043.0,3042.2,2.31082497]
[1763428090755,3.2078,3043.0,3042.3,3.2078]
[1763428091152,3.2078,3043.0,3042.2,2.31082497]
[1763428091153,0.0028248,3043.2,3042.8,3.2078]
[1763428094259,0.0346,3043.7,3042.9,11.59642497]
[1763428094460,0.0346,3043.7,3043.6,3.2078]